[Event "World Senior chT-50 2019"]
[Site "Rhodes"]
[Date "2019.04.22"]
[Round "7.6"]
[White "Arkell, Keith C"]
[Black "Garcia Palermo, Carlos"]
[Result "1/2-1/2"]
[ECO "D35"]
[WhiteElo "2467"]
[BlackElo "2407"]
[Annotator "ChessBase"]
[PlyCount "49"]
[EventDate "2019.04.16"]
[EventType "team-tourn"]
[EventCountry "GRE"]
[SourceTitle "playchess.com"]
[Source "ChessBase"]
[SourceQuality "1"]
[WhiteTeam "England"]
[BlackTeam "Italy"]
[WhiteTeamCountry "ENG"]
[BlackTeamCountry "ITA"]
[TimeControl "40/5400+30:1800+30"]

1. Nf3 {[%emt 0:00:00]} Nf6 {[%emt 0:04:46]} 2. c4 {[%emt 0:00:00]} e6 {[%emt 0:00:38]} 3. Nc3 {[%emt 0:00:08]} d5 {[%emt 0:00:22]} 4. cxd5 {[%emt 0:01:17]} exd5 {[%emt 0:00:23]} 5. d4 {[%emt 0:00:04]} Be7 {[%emt 0:04:25]} 6. Bg5 {[%emt 0:00:07]} Nbd7 {[%emt 0:00:09]} 7. e3 {[%emt 0:00:05]} c6 {[%emt 0:00:19]} 8. Bd3 {[%emt 0:00:09]} Nh5 {[%emt 0:00:21]} 9. Bxe7 {[%emt 0:00:09]} Qxe7 {[%emt 0:00:03]} 10. O-O {[%emt 0:00:35]} O-O {[%emt 0:00:09]} 11. Qc2 {[%emt 0:03:36]} Nhf6 {[%emt 0:00:15]} 12. Rfe1 {[%emt 0:00:18]} Rd8 {[%emt 0:04:10]} 13. Rab1 {[%emt 0:00:20]} g6 {[%emt 0:03:02]} 14. b4 {[%emt 0:04:09]} a6 {[%emt 0:00:17]} 15. a4 {[%emt 0:00:06]} Nb6 {[%emt 0:01:19]} 16. Ne5 {[%emt 0:03:49]} Be6 {[%emt 0:03:07]} 17. Ne2 {[%emt 0:00:59]} Rdc8 {[%emt 0:04:46]} 18. Nf4 {[%emt 0:02:31]} Nbd7 {[%emt 0:05:23]} 19. Nxe6 {[%emt 0:06:47]} Qxe6 {[%emt 0:04:14]} 20. Nxd7 {[%emt 0:02:22]} Qxd7 {[%emt 0:01:06]} 21. Qb3 {[%emt 0:05:52]} b5 {[%emt 0:01:56]} 22. Red1 {[%emt 0:09:45]} Ne8 {[%emt 0:16:17]} 23. e4 {[%emt 0:00:34]} dxe4 {[%emt 0:00:26]} 24. Bxe4 {[%emt 0:00:04]} Nd6 {[%emt 0:00:13]} 25. Bf3 {[%emt 0:05:14]} 1/2-1/2

[Event "World Senior chT-50 2019"]
[Site "Rhodes"]
[Date "2019.04.22"]
[Round "7.7"]
[White "Bellia, Fabrizio"]
[Black "Emms, John M"]
[Result "1/2-1/2"]
[ECO "B22"]
[WhiteElo "2447"]
[BlackElo "2474"]
[Annotator "ChessBase"]
[PlyCount "48"]
[EventDate "2019.04.16"]
[EventType "team-tourn"]
[EventCountry "GRE"]
[SourceTitle "playchess.com"]
[Source "ChessBase"]
[SourceQuality "1"]
[WhiteTeam "Italy"]
[BlackTeam "England"]
[WhiteTeamCountry "ITA"]
[BlackTeamCountry "ENG"]
[TimeControl "40/5400+30:1800+30"]

1. e4 {[%emt 0:00:00]} c5 {[%emt 0:00:54]} 2. c3 {[%emt 0:00:00]} d5 {[%emt 0:01:50]} 3. exd5 {[%emt 0:00:00]} Qxd5 {[%emt 0:00:12]} 4. d4 {[%emt 0:00:00]} Nf6 {[%emt 0:00:28]} 5. Nf3 {[%emt 0:00:04]} e6 {[%emt 0:06:24]} 6. Be3 {[%emt 0:00:38]} cxd4 {[%emt 0:04:01]} 7. cxd4 {[%emt 0:00:08]} Bb4+ {[%emt 0:03:16]} 8. Nc3 {[%emt 0:00:54]} O-O {[%emt 0:00:18]} 9. Bd3 {[%emt 0:01:43]} Bd7 {[%emt 0:04:19]} 10. O-O {[%emt 0:09:16]} Bxc3 {[%emt 0:00:41]} 11. bxc3 {[%emt 0:00:08]} Bb5 {[%emt 0:00:32]} 12. Bxb5 {[%emt 0:07:21]} Qxb5 {[%emt 0:00:05]} 13. Rb1 {[%emt 0:00:13]} Qa6 {[%emt 0:10:43]} 14. Qb3 {[%emt 0:04:19]} b6 {[%emt 0:02:19]} 15. c4 {[%emt 0:01:04]} Nc6 {[%emt 0:06:13]} 16. Qb5 {[%emt 0:06:07]} Qxb5 {[%emt 0:03:46]} 17. Rxb5 {[%emt 0:10:26]} Rfd8 {[%emt 0:11:21]} 18. Rc1 {[%emt 0:06:26]} Rac8 {[%emt 0:01:34]} 19. h3 {[%emt 0:01:09]} h6 {[%emt 0:12:00]} 20. g4 {[%emt 0:05:29]} Kf8 {[%emt 0:06:46]} 21. Kf1 {[%emt 0:02:15]} Na5 {[%emt 0:02:57]} 22. Ne5 {[%emt 0:03:12]} Nc6 {[%emt 0:04:24]} 23. Nf3 {[%emt 0:00:57]} Na5 {[%emt 0:00:45]} 24. Ne5 {[%emt 0:00:08]} Nc6 {[%emt 0:01:31]} 1/2-1/2

[Event "World Senior chT-50 2019"]
[Site "Rhodes"]
[Date "2019.04.22"]
[Round "7.8"]
[White "Ward, Chris G"]
[Black "Bruno, Fabio"]
[Result "0-1"]
[ECO "A90"]
[WhiteElo "2425"]
[BlackElo "2433"]
[Annotator "NA"]
[PlyCount "96"]
[EventDate "2019.04.16"]
[EventType "team-tourn"]
[EventCountry "GRE"]
[SourceTitle "playchess.com"]
[Source "ChessBase"]
[SourceQuality "1"]
[WhiteTeam "England"]
[BlackTeam "Italy"]
[WhiteTeamCountry "ENG"]
[BlackTeamCountry "ITA"]
[TimeControl "40/5400+30:1800+30"]

1. d4 {[%emt 0:00:00]} e6 {[%emt 0:04:00]} 2. c4 {[%emt 0:01:43]} f5 {[%emt 0:00:20]} 3. g3 {[%emt 0:02:43]} Nf6 {[%emt 0:00:13]} 4. Bg2 {[%emt 0:00:04]} d5 {[%emt 0:01:43]} 5. Nh3 {[%emt 0:03:56]} Bd6 {[%emt 0:04:07]} 6. O-O {[%emt 0:03:14]} O-O {[%emt 0:00:38]} 7. Nd2 {[%emt 0:13:40]} Nc6 {[%emt 0:08:35]} 8. Nf3 {[%emt 0:09:54]} dxc4 $11 {[%emt 0:02:18]} 9. Qc2 {[%emt 0:05:31]} b5 {[%emt 0:23:41]} 10. Ne5 {[%emt 0:14:47]} Nxd4 {[%emt 0:10:22]} 11. Qd1 {[%emt 0:00:49]} Bxe5 {[%emt 0:00:05]} 12. Bxa8 {[%emt 0:00:54]} Bd7 {[%emt 0:02:06]} 13. Bg2 {[%emt 0:07:50]} Bc6 {[%emt 0:01:13]} 14. e3 {[%emt 0:17:28]} Bxg2 {[%emt 0:02:01]} 15. Kxg2 {[%emt 0:00:39]} Qd5+ {[%emt 0:05:53]} 16. f3 {[%emt 0:00:07]} Nc6 {[%emt 0:00:08]} 17. Nf4 {[%emt 0:00:59]} Bxf4 {[%emt 0:00:47]} 18. Qxd5 {[%emt 0:01:00]} exd5 {[%emt 0:07:31]} 19. gxf4 {[%emt 0:02:18]} Nb4 {[%emt 0:02:07]} 20. Bd2 {[%emt 0:01:14]} Nd3 {[%emt 0:00:06]} 21. b4 {[%emt 0:02:00]} Re8 {[%emt 0:03:37]} 22. Rfd1 {[%emt 0:06:01]} d4 {[%emt 0:01:34]} 23. exd4 {[%emt 0:02:02]} Re2+ {[%emt 0:00:06]} 24. Kf1 {[%emt 0:00:20]} Rxh2 {[%emt 0:00:19]} 25. Be3 {[%emt 0:01:23]} Nd5 {[%emt 0:00:14]} 26. Bg1 {[%emt 0:00:51]} Rb2 {[%emt 0:00:38]} 27. a4 {[%emt 0:00:40]} a6 {[%emt 0:01:22]} 28. axb5 {[%emt 0:00:26]} axb5 {[%emt 0:00:05]} 29. Ra8+ {[%emt 0:00:08]} Kf7 {[%emt 0:00:05]} 30. Rd8 {[%emt 0:00:13]} N3xb4 {[%emt 0:06:52]} 31. Re1 {[%emt 0:00:51]} c3 {[%emt 0:03:24]} 32. Rd7+ {[%emt 0:00:24]} Kf6 {[%emt 0:01:21]} 33. Bf2 {[%emt 0:01:31]} Rxf2+ {[%emt 0:03:38]} 34. Kxf2 {[%emt 0:00:05]} Nd3+ {[%emt 0:00:03]} 35. Ke2 {[%emt 0:00:24]} N5xf4+ {[%emt 0:00:39]} 36. Kf1 {[%emt 0:00:52]} c2 {[%emt 0:00:57]} 37. Ra1 {[%emt 0:00:51]} c1=Q+ {[%emt 0:00:05]} 38. Rxc1 {[%emt 0:00:04]} Nxc1 {[%emt 0:00:06]} 39. Rxc7 {[%emt 0:00:06]} Ncd3 {[%emt 0:00:08]} 40. Rc6+ {[%emt 0:00:00]} Kg5 {[%emt 0:00:00]} 41. Rc7 {[%emt 0:08:13]} g6 {[%emt 0:02:55]} 42. Rxh7 {[%emt 0:02:43]} b4 {[%emt 0:00:09]} 43. Rb7 {[%emt 0:03:04]} Kf6 {[%emt 0:02:57]} 44. Rb6+ {[%emt 0:08:44]} Ke7 {[%emt 0:00:37]} 45. Kg1 {[%emt 0:05:53]} Kd7 {[%emt 0:03:31]} 46. Kh2 {[%emt 0:01:05]} Kc7 {[%emt 0:00:05]} 47. Rb5 {[%emt 0:02:15]} Ne2 {[%emt 0:02:06]} 48. d5 {[%emt 0:02:59]} Nd4 {[%emt 0:00:33]} 0-1

[Event "World Senior chT-50 2019"]
[Site "Rhodes"]
[Date "2019.04.22"]
[Round "7.9"]
[White "Olafsson, Helgi"]
[Black "Vaganian, Rafael A"]
[Result "1/2-1/2"]
[ECO "D37"]
[WhiteElo "2506"]
[BlackElo "2535"]
[Annotator "ChessBase"]
[PlyCount "64"]
[EventDate "2019.04.16"]
[EventType "team-tourn"]
[EventCountry "GRE"]
[SourceTitle "playchess.com"]
[Source "ChessBase"]
[SourceQuality "1"]
[WhiteTeam "Iceland"]
[BlackTeam "Armenia"]
[WhiteTeamCountry "ISL"]
[BlackTeamCountry "ARM"]
[TimeControl "40/5400+30:1800+30"]

1. d4 {[%emt 0:00:00]} d5 {[%emt 0:00:00]} 2. c4 {[%emt 0:00:00]} e6 {[%emt 0:00:00]} 3. Nf3 {[%emt 0:00:08]} Nf6 {[%emt 0:00:04]} 4. Nc3 {[%emt 0:00:12]} Be7 {[%emt 0:00:07]} 5. Bf4 {[%emt 0:00:09]} O-O {[%emt 0:00:09]} 6. e3 {[%emt 0:00:04]} Nbd7 {[%emt 0:00:26]} 7. c5 {[%emt 0:00:14]} c6 {[%emt 0:00:14]} 8. Bd3 {[%emt 0:00:19]} b6 {[%emt 0:00:06]} 9. b4 {[%emt 0:00:07]} a5 {[%emt 0:00:05]} 10. a3 {[%emt 0:00:09]} Ba6 {[%emt 0:00:15]} 11. Bxa6 {[%emt 0:01:14]} Rxa6 {[%emt 0:00:09]} 12. b5 {[%emt 0:00:09]} cxb5 {[%emt 0:00:14]} 13. c6 {[%emt 0:00:06]} Qc8 {[%emt 0:00:03]} 14. c7 {[%emt 0:00:11]} b4 {[%emt 0:00:07]} 15. Nb5 {[%emt 0:00:13]} a4 {[%emt 0:00:14]} 16. Rc1 {[%emt 0:01:12]} Ra8 {[%emt 0:09:20]} 17. Bd6 {[%emt 0:06:09]} Bxd6 {[%emt 0:00:19]} 18. Nxd6 {[%emt 0:00:06]} Qa6 {[%emt 0:00:04]} 19. Ne5 {[%emt 0:19:26]} Ne4 {[%emt 0:21:56]} 20. c8=Q {[%emt 0:21:04]} Rfxc8 {[%emt 0:00:26]} 21. Nxc8 {[%emt 0:00:07]} Nxe5 {[%emt 0:00:08]} 22. Ne7+ {[%emt 0:00:25]} Kf8 {[%emt 0:00:02]} 23. dxe5 {[%emt 0:00:35]} Nc5 {[%emt 0:00:10]} 24. Nc6 {[%emt 0:20:09]} Nd3+ {[%emt 0:00:32]} 25. Kd2 {[%emt 0:02:10]} Nxc1 {[%emt 0:00:15]} 26. Qxc1 {[%emt 0:05:16]} Rc8 {[%emt 0:00:20]} 27. Qc2 {[%emt 0:05:41]} Qb5 {[%emt 0:01:29]} 28. Rc1 {[%emt 0:01:41]} b3 {[%emt 0:00:54]} 29. Qd3 {[%emt 0:03:20]} Qxd3+ {[%emt 0:00:55]} 30. Kxd3 {[%emt 0:00:01]} Ke8 {[%emt 0:02:19]} 31. Kd2 {[%emt 0:02:11]} b2 {[%emt 0:11:41]} 32. Rb1 {[%emt 0:00:21]} Rxc6 {[%emt 0:00:21]} 1/2-1/2

[Event "World Senior chT-50 2019"]
[Site "Rhodes"]
[Date "2019.04.22"]
[Round "7.10"]
[White "Minasian, Artashes"]
[Black "Hjartarson, Johann"]
[Result "0-1"]
[ECO "C54"]
[WhiteElo "2472"]
[BlackElo "2520"]
[Annotator "ChessBase"]
[PlyCount "138"]
[EventDate "2019.04.16"]
[EventType "team-tourn"]
[EventCountry "GRE"]
[SourceTitle "playchess.com"]
[Source "ChessBase"]
[SourceQuality "1"]
[WhiteTeam "Armenia"]
[BlackTeam "Iceland"]
[WhiteTeamCountry "ARM"]
[BlackTeamCountry "ISL"]
[TimeControl "40/5400+30:1800+30"]

1. e4 {[%emt 0:00:00]} e5 {[%emt 0:00:00]} 2. Nf3 {[%emt 0:00:00]} Nc6 {[%emt 0:00:06]} 3. Bc4 {[%emt 0:00:04]} Bc5 {[%emt 0:00:12]} 4. c3 {[%emt 0:02:43]} Nf6 {[%emt 0:00:08]} 5. d3 {[%emt 0:00:01]} d6 {[%emt 0:00:11]} 6. Bb3 {[%emt 0:00:39]} h6 {[%emt 0:01:17]} 7. Nbd2 {[%emt 0:01:34]} O-O {[%emt 0:00:36]} 8. O-O {[%emt 0:01:33]} Be6 {[%emt 0:03:04]} 9. Nc4 {[%emt 0:04:27]} Bb6 {[%emt 0:23:30]} 10. Qe2 {[%emt 0:06:47]} Re8 {[%emt 0:01:54]} 11. Nxb6 {[%emt 0:05:19]} axb6 {[%emt 0:00:10]} 12. Bc2 {[%emt 0:00:51]} d5 {[%emt 0:02:54]} 13. Nd2 {[%emt 0:12:22]} Qd7 {[%emt 0:02:00]} 14. Re1 {[%emt 0:01:54]} b5 {[%emt 0:05:11]} 15. a3 {[%emt 0:03:27]} b4 {[%emt 0:02:51]} 16. Nb3 {[%emt 0:01:51]} bxc3 {[%emt 0:01:43]} 17. bxc3 {[%emt 0:02:58]} b6 {[%emt 0:00:25]} 18. Qf3 {[%emt 0:05:48]} dxe4 {[%emt 0:09:55]} 19. dxe4 {[%emt 0:00:05]} Qe7 {[%emt 0:00:54]} 20. h3 {[%emt 0:02:34]} Na5 {[%emt 0:02:13]} 21. Nxa5 {[%emt 0:08:58]} Rxa5 {[%emt 0:00:53]} 22. Rb1 {[%emt 0:00:07]} Nd7 {[%emt 0:02:57]} 23. Rd1 {[%emt 0:00:37]} Nf8 {[%emt 0:05:16]} 24. Rb4 {[%emt 0:03:23]} Rd8 {[%emt 0:01:33]} 25. Rxd8 {[%emt 0:01:42]} Qxd8 {[%emt 0:00:03]} 26. Qd3 {[%emt 0:04:26]} Qxd3 {[%emt 0:06:21]} 27. Bxd3 {[%emt 0:00:04]} Nd7 {[%emt 0:00:16]} 28. Kf1 {[%emt 0:01:41]} Kf8 {[%emt 0:00:41]} 29. Ke2 {[%emt 0:00:36]} Ke7 {[%emt 0:00:41]} 30. Bc2 {[%emt 0:02:55]} Nc5 {[%emt 0:00:45]} 31. f3 {[%emt 0:02:34]} g5 {[%emt 0:00:47]} 32. Ke1 {[%emt 0:04:32]} f6 {[%emt 0:01:35]} 33. Ke2 {[%emt 0:00:06]} Bd7 {[%emt 0:02:05]} 34. Bd3 {[%emt 0:00:54]} Ne6 {[%emt 0:07:31]} 35. Ke3 {[%emt 0:01:04]} Nf4 {[%emt 0:00:51]} 36. Bf1 {[%emt 0:00:12]} Bc8 {[%emt 0:03:09]} 37. Kd2 {[%emt 0:04:13]} Ba6 {[%emt 0:00:54]} 38. c4 {[%emt 0:00:05]} Bc8 {[%emt 0:01:23]} 39. Kc3 {[%emt 0:01:41]} Ne6 {[%emt 0:00:14]} 40. Rb1 {[%emt 0:00:00]} Bd7 {[%emt 0:00:00]} 41. Ra1 {[%emt 0:02:53]} Kd6 {[%emt 0:03:01]} 42. Bd3 {[%emt 0:02:38]} Nd4 {[%emt 0:01:37]} 43. Rb1 {[%emt 0:00:53]} Be6 {[%emt 0:01:29]} 44. Rb4 {[%emt 0:04:56]} Ra8 {[%emt 0:01:04]} 45. Rb1 {[%emt 0:00:46]} Kc5 {[%emt 0:01:24]} 46. Rb4 {[%emt 0:01:06]} h5 {[%emt 0:00:44]} 47. Rb1 {[%emt 0:00:33]} Kd6 {[%emt 0:01:36]} 48. Rb4 {[%emt 0:03:57]} g4 {[%emt 0:02:36]} 49. hxg4 {[%emt 0:00:16]} hxg4 {[%emt 0:00:06]} 50. fxg4 {[%emt 0:04:40]} Bxg4 {[%emt 0:00:39]} 51. Kd2 {[%emt 0:00:39]} Bd7 {[%emt 0:02:37]} 52. Ke3 {[%emt 0:00:31]} Rg8 {[%emt 0:00:22]} 53. Kf2 {[%emt 0:00:28]} Bc6 {[%emt 0:00:18]} 54. Be3 {[%emt 0:05:48]} Rg4 {[%emt 0:00:35]} 55. c5+ {[%emt 0:02:51]} bxc5 {[%emt 0:00:12]} 56. Rb8 {[%emt 0:00:05]} Bxe4 {[%emt 0:00:59]} 57. Bf1 {[%emt 0:01:21]} Bc6 {[%emt 0:01:53]} 58. Bh6 {[%emt 0:03:31]} Ne6 {[%emt 0:01:43]} 59. g3 {[%emt 0:00:20]} Ra4 {[%emt 0:01:19]} 60. Rb3 {[%emt 0:00:05]} Bd5 {[%emt 0:00:46]} 61. Rc3 {[%emt 0:00:25]} Ra8 {[%emt 0:00:38]} 62. Bc1 {[%emt 0:01:44]} Nd4 {[%emt 0:01:06]} 63. g4 {[%emt 0:00:29]} Be6 {[%emt 0:00:59]} 64. g5 {[%emt 0:01:13]} fxg5 {[%emt 0:00:17]} 65. Bg2 {[%emt 0:01:50]} Rf8+ {[%emt 0:00:26]} 66. Ke1 {[%emt 0:00:15]} g4 {[%emt 0:00:48]} 67. a4 {[%emt 0:00:04]} c4 {[%emt 0:02:00]} 68. a5 {[%emt 0:00:57]} Bd5 {[%emt 0:00:21]} 69. Bf1 {[%emt 0:01:42]} Ra8 {[%emt 0:01:02]} 0-1

[Event "World Senior chT-50 2019"]
[Site "Rhodes"]
[Date "2019.04.22"]
[Round "7.11"]
[White "Arnason, Jon L"]
[Black "Movsziszian, Karen"]
[Result "1/2-1/2"]
[ECO "B08"]
[WhiteElo "2423"]
[BlackElo "2485"]
[Annotator "ChessBase"]
[PlyCount "109"]
[EventDate "2019.04.16"]
[EventType "team-tourn"]
[EventCountry "GRE"]
[SourceTitle "playchess.com"]
[Source "ChessBase"]
[SourceQuality "1"]
[WhiteTeam "Iceland"]
[BlackTeam "Armenia"]
[WhiteTeamCountry "ISL"]
[BlackTeamCountry "ARM"]
[TimeControl "40/5400+30:1800+30"]

1. e4 {[%emt 0:00:00]} g6 {[%emt 0:00:00]} 2. d4 {[%emt 0:00:00]} Bg7 {[%emt 0:00:00]} 3. Nc3 {[%emt 0:00:00]} c6 {[%emt 0:00:22]} 4. Nf3 {[%emt 0:02:17]} d6 {[%emt 0:00:09]} 5. Bc4 {[%emt 0:00:43]} Nf6 {[%emt 0:00:15]} 6. Bb3 {[%emt 0:01:11]} Bg4 {[%emt 0:03:19]} 7. h3 {[%emt 0:05:34]} Bxf3 {[%emt 0:00:05]} 8. Qxf3 {[%emt 0:00:05]} Nbd7 {[%emt 0:01:24]} 9. Be3 {[%emt 0:08:11]} O-O {[%emt 0:00:23]} 10. O-O {[%emt 0:05:53]} e5 {[%emt 0:02:39]} 11. Rad1 {[%emt 0:03:13]} Qe7 {[%emt 0:14:36]} 12. Rfe1 {[%emt 0:02:08]} h6 {[%emt 0:02:13]} 13. Qe2 {[%emt 0:03:27]} b5 {[%emt 0:23:14]} 14. dxe5 {[%emt 0:07:37]} Nxe5 {[%emt 0:00:08]} 15. Qd2 {[%emt 0:10:16]} b4 {[%emt 0:03:26]} 16. Na4 {[%emt 0:00:40]} c5 {[%emt 0:09:41]} 17. Qxd6 {[%emt 0:19:33]} Qxd6 {[%emt 0:01:00]} 18. Rxd6 {[%emt 0:00:04]} Nxe4 {[%emt 0:04:58]} 19. Rd5 {[%emt 0:00:55]} c4 {[%emt 0:03:05]} 20. Bd4 {[%emt 0:00:52]} cxb3 {[%emt 0:02:38]} 21. axb3 {[%emt 0:01:30]} Nf3+ {[%emt 0:16:20]} 22. gxf3 {[%emt 0:00:21]} Ng5 {[%emt 0:00:05]} 23. Kg2 {[%emt 0:03:05]} Ne6 {[%emt 0:00:01]} 24. Bxg7 {[%emt 0:06:04]} Kxg7 {[%emt 0:00:03]} 25. Re4 {[%emt 0:00:13]} Rfc8 {[%emt 0:01:20]} 26. Rd7 {[%emt 0:02:22]} Kf6 {[%emt 0:03:13]} 27. c3 {[%emt 0:03:00]} bxc3 {[%emt 0:00:04]} 28. Nxc3 {[%emt 0:01:05]} Rd8 {[%emt 0:01:46]} 29. Rb7 {[%emt 0:07:10]} g5 {[%emt 0:00:07]} 30. Ra4 {[%emt 0:00:34]} Kg6 {[%emt 0:02:34]} 31. Ne4 {[%emt 0:01:58]} a5 {[%emt 0:01:44]} 32. Rb5 {[%emt 0:01:32]} Nf4+ {[%emt 0:00:41]} 33. Kh2 {[%emt 0:01:46]} Rd3 {[%emt 0:00:22]} 34. Kg3 {[%emt 0:00:34]} Rd1 {[%emt 0:00:13]} 35. Kh2 {[%emt 0:00:23]} Rad8 {[%emt 0:02:32]} 36. Rb6+ {[%emt 0:01:11]} Kg7 {[%emt 0:00:15]} 37. Rxa5 {[%emt 0:00:11]} R8d3 {[%emt 0:00:51]} 38. Ng3 {[%emt 0:00:14]} Ne6 {[%emt 0:01:17]} 39. Nf5+ {[%emt 0:01:22]} Kg6 {[%emt 0:00:27]} 40. Ne3 {[%emt 0:00:00]} Rb1 {[%emt 0:00:00]} 41. Rd5 {[%emt 0:05:16]} Rxd5 {[%emt 0:02:02]} 42. Nxd5 {[%emt 0:00:20]} Rxb2 {[%emt 0:00:37]} 43. Nc7 {[%emt 0:13:57]} Rxf2+ {[%emt 0:00:14]} 44. Kg3 {[%emt 0:00:08]} Re2 {[%emt 0:00:06]} 45. b4 {[%emt 0:01:40]} Kf5 {[%emt 0:04:57]} 46. Nxe6 {[%emt 0:01:32]} fxe6 {[%emt 0:00:02]} 47. Rb8 {[%emt 0:00:21]} Rb2 {[%emt 0:01:56]} 48. b5 {[%emt 0:04:17]} h5 {[%emt 0:01:51]} 49. h4 {[%emt 0:00:13]} gxh4+ {[%emt 0:00:14]} 50. Kxh4 {[%emt 0:00:06]} Kf4 {[%emt 0:00:16]} 51. Rf8+ {[%emt 0:00:08]} Ke3 {[%emt 0:00:02]} 52. Re8 {[%emt 0:00:25]} Rxb5 {[%emt 0:00:41]} 53. Rxe6+ {[%emt 0:00:05]} Kxf3 {[%emt 0:00:03]} 54. Rf6+ {[%emt 0:00:17]} Ke3 {[%emt 0:00:11]} 55. Rf8 {[%emt 0:00:33]} 1/2-1/2

[Event "World Senior chT-50 2019"]
[Site "Rhodes"]
[Date "2019.04.22"]
[Round "7.12"]
[White "Petrosian, Arshak B"]
[Black "Thorhallsson, Throstur"]
[Result "1/2-1/2"]
[ECO "A37"]
[WhiteElo "2470"]
[BlackElo "2425"]
[Annotator "ChessBase"]
[PlyCount "41"]
[EventDate "2019.04.16"]
[EventType "team-tourn"]
[EventCountry "GRE"]
[SourceTitle "playchess.com"]
[Source "ChessBase"]
[SourceQuality "1"]
[WhiteTeam "Armenia"]
[BlackTeam "Iceland"]
[WhiteTeamCountry "ARM"]
[BlackTeamCountry "ISL"]
[TimeControl "40/5400+30:1800+30"]

1. Nf3 {[%emt 0:00:12]} c5 {[%emt 0:00:11]} 2. c4 {[%emt 0:00:19]} Nc6 {[%emt 0:00:25]} 3. Nc3 {[%emt 0:00:56]} e5 {[%emt 0:00:24]} 4. g3 {[%emt 0:01:55]} g6 {[%emt 0:00:28]} 5. Bg2 {[%emt 0:00:07]} Bg7 {[%emt 0:00:27]} 6. a3 {[%emt 0:00:09]} d6 {[%emt 0:01:30]} 7. Rb1 {[%emt 0:04:23]} Nge7 {[%emt 0:04:33]} 8. d3 {[%emt 0:06:36]} a5 {[%emt 0:04:21]} 9. O-O {[%emt 0:06:46]} O-O {[%emt 0:00:08]} 10. Bd2 {[%emt 0:16:30]} Rb8 {[%emt 0:09:16]} 11. Ne1 {[%emt 0:04:35]} Be6 {[%emt 0:02:57]} 12. Nc2 {[%emt 0:02:25]} d5 {[%emt 0:01:54]} 13. cxd5 {[%emt 0:02:12]} Nxd5 {[%emt 0:00:12]} 14. Nxd5 {[%emt 0:06:41]} Bxd5 {[%emt 0:00:07]} 15. Bxd5 {[%emt 0:00:13]} Qxd5 {[%emt 0:00:06]} 16. b4 {[%emt 0:06:35]} axb4 {[%emt 0:04:42]} 17. axb4 {[%emt 0:02:47]} e4 {[%emt 0:04:23]} 18. bxc5 {[%emt 0:18:04]} exd3 {[%emt 0:06:09]} 19. Nb4 {[%emt 0:04:43]} Qxc5 {[%emt 0:08:08]} 20. Nxd3 {[%emt 0:00:11]} Qe7 {[%emt 0:06:24]} 21. Be3 {[%emt 0:02:20]} 1/2-1/2

[Event "World Senior chT-50 2019"]
[Site "Rhodes"]
[Date "2019.04.22"]
[Round "7.13"]
[White "Mahia, Gustavo"]
[Black "Boensch, Uwe"]
[Result "0-1"]
[ECO "B33"]
[WhiteElo "2367"]
[BlackElo "2525"]
[Annotator "RC"]
[PlyCount "76"]
[EventDate "2019.04.16"]
[EventType "team-tourn"]
[EventCountry "GRE"]
[SourceTitle "playchess.com"]
[Source "ChessBase"]
[SourceQuality "1"]
[WhiteTeam "Argentina"]
[BlackTeam "Germany"]
[WhiteTeamCountry "ARG"]
[BlackTeamCountry "GER"]
[TimeControl "40/5400+30:1800+30"]

1. e4 {[%emt 0:00:00]} c5 {[%emt 0:00:00]} 2. Nf3 {[%emt 0:00:00]} Nc6 {[%emt 0:00:00]} 3. d4 {[%emt 0:00:00]} cxd4 {[%emt 0:00:00]} 4. Nxd4 {[%emt 0:00:00]} Qb6 {[%emt 0:00:00]} 5. Nb3 {[%emt 0:01:27]} Nf6 {[%emt 0:00:00]} 6. Nc3 {[%emt 0:00:32]} e6 {[%emt 0:00:03]} 7. Bd3 {[%emt 0:02:29]} a6 {[%emt 0:00:24]} 8. O-O {[%emt 0:00:34]} Be7 {[%emt 0:01:18]} 9. Re1 {[%emt 0:14:03]} d6 {[%emt 0:01:01]} 10. a4 {[%emt 0:00:29]} Qc7 {[%emt 0:03:16]} 11. a5 {[%emt 0:03:25]} b5 {[%emt 0:13:33]} 12. axb6 {[%emt 0:00:20]} Qxb6 {[%emt 0:00:02]} 13. Be3 {[%emt 0:00:43]} Qc7 {[%emt 0:00:38]} 14. Ra4 {[%emt 0:08:03]} O-O {[%emt 0:04:19]} 15. Qe2 {[%emt 0:00:42]} d5 {[%emt 0:12:58]} 16. exd5 {[%emt 0:02:04]} exd5 {[%emt 0:04:55]} 17. Bg5 {[%emt 0:17:02]} Be6 {[%emt 0:05:43]} 18. Nc5 {[%emt 0:08:35]} Nd4 {[%emt 0:08:15]} 19. Rxd4 {[%emt 0:02:49]} Qxc5 {[%emt 0:00:11]} 20. Rh4 {[%emt 0:06:42]} g6 {[%emt 0:00:57]} 21. Qe5 {[%emt 0:16:21]} Nd7 {[%emt 0:05:47]} 22. Qg3 {[%emt 0:00:03]} Bd6 {[%emt 0:17:51]} 23. Bf4 {[%emt 0:00:40]} Bxf4 {[%emt 0:00:22]} 24. Qxf4 {[%emt 0:00:13]} Rfe8 {[%emt 0:00:10]} 25. Ra1 {[%emt 0:02:32]} Rab8 {[%emt 0:06:43]} 26. Na4 {[%emt 0:02:05]} Qc6 {[%emt 0:00:50]} 27. b3 {[%emt 0:00:26]} a5 {[%emt 0:00:13]} 28. h3 {[%emt 0:02:28]} Rb4 {[%emt 0:00:30]} 29. Qh6 {[%emt 0:00:06]} Rxh4 {[%emt 0:00:53]} 30. Qxh4 {[%emt 0:00:05]} Ne5 {[%emt 0:00:12]} 31. Qf6 {[%emt 0:05:38]} Nxd3 {[%emt 0:02:29]} 32. cxd3 {[%emt 0:00:04]} Qb5 {[%emt 0:03:18]} 33. d4 {[%emt 0:03:21]} Qxb3 {[%emt 0:00:56]} 34. Nc5 {[%emt 0:00:01]} Qb4 {[%emt 0:00:08]} 35. h4 {[%emt 0:00:12]} h5 {[%emt 0:01:08]} 36. Kh2 {[%emt 0:00:59]} Bf5 {[%emt 0:00:15]} 37. Ra4 {[%emt 0:01:56]} Qb8+ {[%emt 0:02:35]} 38. g3 {[%emt 0:00:08]} Qb2 {[%emt 0:00:08]} 0-1